bitfinex/quotes_BTCUSD_20240723
["timestamp","ask_amount","ask_price","bid_price","bid_amount"]
[1721753912970,0.00116,66091.0,66087.0,0.001]
[1721753913172,0.22595642,66091.0,66087.0,0.151314]
[1721753913374,0.22595642,66091.0,66088.0,0.151312]
[1721753913578,0.001,66090.0,66088.0,0.151312]
[1721753913815,0.001,66090.0,66089.0,0.151311]
[1721753913965,0.001,66090.0,66081.0,0.302657]
[1721753913966,0.303618,66090.0,66084.0,0.302642]
[1721753914170,0.00116,66089.0,66078.0,0.302668]
[1721753914496,0.07348942,66084.0,66079.0,0.651332]
[1721753914706,0.151325,66083.0,66079.0,0.651333]
[1721753914913,0.151331,66080.0,66079.0,0.5]
[1721753915112,0.756657,66080.0,66079.0,0.5]
[1721753916681,0.756657,66080.0,66079.0,0.501]
[1721753917409,0.757657,66080.0,66079.0,0.507]
[1721753917563,0.454994,66080.0,66079.0,0.507]
[1721753918355,0.454994,66080.0,66079.0,0.506]
[1721753918356,0.757657,66080.0,66079.0,0.506]
[1721753918706,0.152331,66080.0,66079.0,0.511]
[1721753919558,0.001,66080.0,66079.0,0.511]
[1721753919750,0.001,66080.0,66079.0,1.0625042]
[1721753919953,0.001,66080.0,66079.0,1.3651722]
[1721753920356,0.001,66080.0,66079.0,0.965002]
[1721753920558,0.001,66080.0,66079.0,0.511]
[1721753920762,0.001,66080.0,66079.0,0.662334]
[1721753921064,0.001,66080.0,66079.0,0.965002]
[1721753921460,0.001,66080.0,66079.0,1.26767]
[1721753922164,0.001,66080.0,66079.0,1.79450065]
[1721753922616,0.001,66080.0,66079.0,1.647538]
[1721753923219,0.001,66080.0,66079.0,1.64574499]
[1721753923810,0.001,66080.0,66079.0,1.34307699]
[1721753924016,0.001,66080.0,66079.0,1.26587699]
[1721753924618,0.001,66080.0,66079.0,1.56854499]
[1721753924819,0.001,66080.0,66079.0,1.71550764]
[1721753926420,0.001,66080.0,66079.0,1.56854499]
[1721753926615,0.001,66080.0,66079.0,1.7782649]
[1721753926817,0.001,66080.0,66079.0,1.8012649]
[1721753927271,0.001,66080.0,66079.0,1.63124499]
[1721753928720,0.001,66080.0,66079.0,1.02590899]
[1721753928923,0.001,66080.0,66079.0,0.96320899]
[1721753929987,0.001,66080.0,66079.0,0.50920699]
[1721753930144,0.001,66080.0,66079.0,0.66054099]
[1721753930982,0.303663,66080.0,66079.0,0.50920699]
[1721753931195,0.454994,66080.0,66079.0,0.50920699]
[1721753931400,0.757657,66080.0,66079.0,0.50920699]
[1721753932611,1.06032,66080.0,66079.0,0.50920699]
[1721753932805,1.55702479,66080.0,66079.0,0.50920699]
[1721753933025,0.302722,66067.0,66066.0,0.000924]
[1721753933274,0.40813121,66067.0,66047.0,0.0652]
[1721753933589,0.40813121,66067.0,66049.0,0.060616]
[1721753933590,0.07348942,66050.0,66049.0,0.060616]
[1721753933929,0.07348942,66050.0,66047.0,0.0652]
[1721753933930,0.07348942,66050.0,66044.0,0.302824]
[1721753934132,0.07348942,66050.0,66046.0,0.151409]
[1721753934133,0.22488942,66050.0,66046.0,0.151409]
[1721753934338,0.22488942,66050.0,66046.0,0.151408]
[1721753934538,0.07348942,66050.0,66045.0,0.302821]
[1721753934738,0.22489142,66050.0,66047.0,0.001]
[1721753934960,0.151403,66049.0,66047.0,0.001]
[1721753935161,0.22489042,66050.0,66047.0,0.001]
[1721753935403,0.22689042,66050.0,66047.0,0.001]
[1721753935598,0.151405,66048.0,66047.0,0.001]
[1721753935807,0.37629242,66050.0,66047.0,0.001]
[1721753936006,0.22338717,66067.0,66048.0,0.151404]
[1721753936359,0.304807,66049.0,66043.0,0.151415]
[1721753936555,0.002,66049.0,66043.0,0.30283]
[1721753936767,0.002,66049.0,66044.0,0.302827]
[1721753936969,0.002,66049.0,66046.0,0.151408]
[1721753937174,0.002,66049.0,66048.0,0.151405]
[1721753937347,0.44193401,66061.0,66060.0,0.151377]
[1721753937575,0.302715,66069.0,66050.0,0.1421]
[1721753937723,0.0798,66071.0,66050.0,0.0619]
[1721753937724,0.30278,66055.0,66050.0,0.0619]
[1721753937982,0.07348942,66059.0,66050.0,0.0619]
[1721753938347,0.302777,66056.0,66050.0,0.0619]
[1721753938509,0.151389,66055.0,66051.0,0.151397]
[1721753938710,0.151381,66059.0,66051.0,0.302795]
[1721753938935,0.151378,66060.0,66054.0,0.302779]
[1721753939091,0.151371,66063.0,66058.0,0.15138]
[1721753939291,0.011,66059.0,66057.0,0.302768]
[1721753939496,0.011,66059.0,66058.0,0.151382]
[1721753939697,0.011,66059.0,66055.0,0.302775]
[1721753939954,0.011,66059.0,66057.0,0.151383]
[1721753940266,0.024,66059.0,66056.0,0.151386]
[1721753940442,0.151382,66058.0,66054.0,0.151389]
[1721753940846,0.07348942,66056.0,66053.0,0.302783]
[1721753941047,0.07348942,66056.0,66050.0,0.001]
[1721753941220,0.07348942,66056.0,66044.0,0.366424]
[1721753941221,0.07348942,66056.0,66044.0,0.0636]
[1721753941424,0.151401,66050.0,66046.0,0.151408]
[1721753941622,0.1514,66050.0,66047.0,0.001634]
[1721753941823,0.302796,66051.0,66046.0,0.153043]
[1721753942025,0.151399,66051.0,66047.0,0.151406]
[1721753942233,0.151401,66050.0,66046.0,0.151408]
[1721753942438,0.302792,66052.0,66047.0,0.15304]
[1721753942687,0.151401,66050.0,66046.0,0.151408]
[1721753942818,0.1514,66050.0,66046.0,0.151408]
[1721753943019,0.1514,66050.0,66044.0,0.0636]
[1721753943020,0.013,66058.0,66054.0,0.001]
[1721753943243,0.151395,66053.0,66048.0,0.151404]
[1721753943438,0.302776,66056.0,66049.0,0.001634]
[1721753943663,0.006,66052.0,66049.0,0.151402]
[1721753943865,0.006,66052.0,66051.0,0.151398]
[1721753944185,0.151394,66053.0,66048.0,0.302809]
[1721753944410,0.0788,66063.0,66047.0,0.001]
[1721753944411,0.07348942,66050.0,66047.0,0.001]
[1721753944617,0.011,66058.0,66038.0,0.065234]
[1721753944822,0.151396,66052.0,66048.0,0.151403]
[1721753944951,0.151411,66046.0,66042.0,0.151417]
[1721753945152,0.151405,66048.0,66044.0,0.151413]
[1721753945378,0.302794,66052.0,66046.0,0.151407]
[1721753945585,0.302797,66051.0,66039.0,0.302851]
[1721753945791,0.151398,66051.0,66047.0,0.151406]
[1721753945998,0.011,66058.0,66047.0,0.14701991]
[1721753946155,0.011,66058.0,66057.0,0.151384]
[1721753946355,0.151385,66057.0,66055.0,0.0624]
[1721753946590,0.302768,66057.0,66055.0,0.0624]
[1721753946792,0.151386,66056.0,66055.0,0.0624]
[1721753946994,0.20888942,66056.0,66039.0,0.001634]
[1721753947202,0.151398,66051.0,66047.0,0.151407]
[1721753947372,0.454208,66049.0,66048.0,0.001634]
[1721753947714,0.302793,66052.0,66040.0,0.001634]
[1721753947915,0.151413,66045.0,66041.0,0.15142]
[1721753948118,0.151414,66044.0,66040.0,0.001634]
[1721753948328,0.151411,66046.0,66040.0,0.001634]
[1721753948499,0.15141,66046.0,66042.0,0.151418]
[1721753948676,0.151412,66045.0,66041.0,0.151419]
[1721753948886,0.151421,66041.0,66040.0,0.001634]
[1721753949084,0.151423,66040.0,66036.0,0.16041948]
[1721753949295,0.302853,66039.0,66033.0,0.001634]
[1721753949515,0.151437,66034.0,66033.0,0.001634]
[1721753949718,0.151455,66026.0,66025.0,0.000924]
[1721753950233,0.454365,66026.0,66025.0,0.000924]
[1721753950385,1.060185,66026.0,66025.0,0.000924]
[1721753950623,1.28370491,66026.0,66025.0,0.000924]
[1721753951147,1.28370491,66026.0,66025.0,0.00087737]
[1721753952367,1.28470491,66026.0,66025.0,0.00087737]
[1721753952563,1.29470491,66026.0,66025.0,0.00187737]
[1721753952763,1.29370491,66026.0,66025.0,0.00187737]
[1721753952922,0.99079491,66026.0,66025.0,0.00187737]
[1721753953140,1.00079491,66026.0,66025.0,0.00287737]
[1721753954204,1.30370491,66026.0,66025.0,0.00287737]
[1721753955762,0.550865,66026.0,66025.0,0.00287737]
[1721753955976,0.474365,66026.0,66025.0,0.00287737]
[1721753956406,0.02,66026.0,66025.0,0.00287737]
[1721753956690,0.777275,66026.0,66025.0,0.00287737]
[1721753956935,0.474365,66026.0,66025.0,0.00287737]
[1721753957153,0.777275,66026.0,66025.0,0.00287737]
[1721753957672,0.171455,66026.0,66025.0,0.00287737]
[1721753957884,0.02,66026.0,66025.0,0.00287737]
[1721753958112,0.02,66026.0,66025.0,0.45724937]
[1721753958317,0.02,66026.0,66025.0,0.51934937]
[1721753958495,0.02,66026.0,66025.0,0.57982631]
[1721753959024,0.02,66026.0,66025.0,1.02976122]
[1721753959194,0.01,66026.0,66025.0,1.05176122]
[1721753959394,0.01,66026.0,66025.0,0.82126437]
[1721753959611,0.474365,66026.0,66025.0,0.06497737]
[1721753959935,0.02,66026.0,66025.0,0.06497737]
[1721753960101,0.464365,66026.0,66025.0,0.00187737]
[1721753960302,0.757275,66026.0,66025.0,0.00087737]
[1721753960504,0.01,66026.0,66025.0,0.00187737]
[1721753960932,0.151448,66029.0,66025.0,0.00087737]
[1721753961133,0.1595,66055.0,66025.0,0.00087737]
[1721753961336,0.154455,66026.0,66025.0,0.00087737]
[1721753961534,0.157455,66026.0,66025.0,0.00087737]
[1721753961712,0.167455,66026.0,66025.0,0.00187737]
[1721753961913,0.470365,66026.0,66025.0,0.00187737]
[1721753962113,0.454365,66026.0,66025.0,0.00087737]
[1721753962341,0.151455,66026.0,66025.0,0.00187737]
[1721753962541,0.454365,66026.0,66025.0,0.00187737]
[1721753962720,0.151455,66026.0,66025.0,0.00187737]
[1721753962924,0.454365,66026.0,66025.0,0.00087737]
[1721753963320,0.457365,66026.0,66025.0,0.00087737]
[1721753963528,0.760275,66026.0,66025.0,0.00087737]
[1721753963925,0.760275,66026.0,66025.0,0.00187737]
[1721753964129,0.752175,66026.0,66025.0,0.00187737]
[1721753964339,1.055085,66026.0,66025.0,0.00087737]
[1721753964565,1.052085,66026.0,66025.0,0.00187737]
[1721753964769,1.062085,66026.0,66025.0,0.00187737]
[1721753964992,1.060085,66026.0,66025.0,0.00187737]
[1721753965193,1.20710491,66026.0,66025.0,0.00187737]
[1721753965370,1.20610491,66026.0,66025.0,0.00187737]
[1721753965574,1.20610491,66026.0,66025.0,0.00087737]
[1721753965767,1.21410491,66026.0,66025.0,0.00187737]
[1721753966108,1.22410491,66026.0,66025.0,0.00287737]
[1721753966312,0.91319491,66026.0,66025.0,0.00187737]
[1721753966645,1.22610491,66026.0,66025.0,0.00287737]
[1721753967047,1.20910491,66026.0,66025.0,0.00187737]
[1721753967246,1.22310491,66026.0,66025.0,0.00287737]
[1721753967810,1.52601491,66026.0,66025.0,0.00287737]
[1721753968163,1.29990491,66026.0,66025.0,0.00287737]
[1721753971072,1.70281491,66026.0,66025.0,0.00287737]
[1721753971265,1.76121491,66026.0,66025.0,0.00287737]
[1721753971642,1.06022,66024.0,66023.0,0.00852]
[1721753971843,0.454434,66016.0,66015.0,0.00856]
[1721753972083,1.36576591,66016.0,66015.0,0.00856]
[1721753972281,1.66872191,66016.0,66015.0,0.00856]
[1721753973326,2.05117791,66016.0,66015.0,0.00856]
[1721753973514,2.09851174,66016.0,66015.0,0.00856]
[1721753973694,2.10851174,66016.0,66015.0,0.00956]
[1721753973891,2.26801174,66016.0,66015.0,0.00956]
[1721753974699,2.25801174,66016.0,66015.0,0.00856]
[1721753974948,2.27201174,66016.0,66015.0,0.00856]
[1721753975259,2.11251174,66016.0,66015.0,0.00856]
[1721753975597,2.12651174,66016.0,66015.0,0.00856]
[1721753975857,1.77622191,66016.0,66015.0,0.00856]
[1721753976241,1.78533048,66016.0,66015.0,0.00856]
[1721753976442,1.81867898,66016.0,66015.0,0.00856]
[1721753976663,2.28113498,66016.0,66014.0,0.00852]
[1721753976821,0.393899,66007.0,66006.0,0.0162173]
[1721753977030,0.1466,65999.0,65972.0,0.00925057]
[1721753977237,0.22050933,65996.0,65959.0,0.001634]
[1721753977483,0.00116,65987.0,65967.0,0.001634]
[1721753977622,0.1466,65999.0,65961.0,0.001634]
[1721753977623,0.14701991,65986.0,65961.0,0.001634]
[1721753977827,0.00116,65985.0,65973.0,0.303151]
[1721753978070,0.00116,65983.0,65974.0,0.001634]
[1721753978273,0.151561,65980.0,65974.0,0.001634]
[1721753978488,0.151562,65980.0,65974.0,0.153208]
[1721753978726,0.14701991,65983.0,65974.0,0.001634]
[1721753978939,0.14701991,65979.0,65968.0,0.001634]
[1721753979162,0.00116,65978.0,65962.0,0.303201]
[1721753979372,0.0819,65972.0,65959.0,0.001634]
[1721753979578,0.14701991,65971.0,65958.0,0.00900138]
[1721753979790,0.00116,65962.0,65958.0,0.00900138]
[1721753980001,0.00116,65963.0,65956.0,0.001634]
[1721753980162,0.151614,65957.0,65951.0,0.0655]
[1721753980360,0.14694408,65957.0,65951.0,0.0655]
[1721753980513,0.454875,65952.0,65951.0,0.0655]
[1721753980714,0.151641,65945.0,65944.0,0.00015164]
[1721753980920,0.14701991,65951.0,65944.0,0.00015164]
[1721753981132,0.21331991,65950.0,65945.0,0.001634]
[1721753981336,0.21331991,65950.0,65944.0,0.00015164]
[1721753981337,0.151641,65945.0,65944.0,0.00015164]
[1721753981703,0.60194391,65945.0,65944.0,0.00015164]
[1721753981908,0.90522691,65945.0,65944.0,0.00015164]
[1721753982255,0.14701991,65945.0,65944.0,0.00015164]
[1721753982452,0.0754,65953.0,65944.0,0.00015164]
[1721753982677,0.00116,65952.0,65944.0,0.00015164]
[1721753982875,0.00116,65962.0,65951.0,0.303255]
[1721753983090,0.14701991,65961.0,65953.0,0.15162]
[1721753983296,0.14701991,65961.0,65944.0,0.00015164]
[1721753983297,0.404375,65960.0,65950.0,0.151629]
[1721753983490,0.00116,65960.0,65958.0,0.15161]
[1721753983726,0.00116,65960.0,65959.0,0.151609]
[1721753983927,0.0824,65975.0,65959.0,0.151609]
[1721753984095,0.014,65962.0,65961.0,0.151604]
[1721753984295,0.14701991,65962.0,65944.0,0.00988304]
[1721753984536,0.14817991,65961.0,65960.0,0.454821]
[1721753984744,0.014,65953.0,65952.0,0.454875]
[1721753985363,0.303191,65965.0,65952.0,0.303248]
[1721753985638,0.00116,65961.0,65952.0,0.0303248]
[1721753985842,0.00116,65961.0,65960.0,0.151607]
[1721753986066,0.023,65962.0,65961.0,0.758022]
[1721753986266,0.023,65962.0,65961.0,1.061231]
[1721753986599,0.023,65962.0,65961.0,1.6129631]
[1721753986803,0.0809,65985.0,65961.0,0.2485231]
[1721753987009,0.14701991,65984.0,65962.0,0.001634]
[1721753987215,0.00116,65983.0,65963.0,0.151598]
[1721753987418,0.14701991,65982.0,65965.0,0.151594]
[1721753987563,0.21948942,65969.0,65950.0,0.765456]
[1721753987723,0.454806,65962.0,65961.0,0.002]
[1721753987925,0.30321,65961.0,65945.0,0.0759]
[1721753988127,0.14981391,65960.0,65945.0,0.15164]
[1721753988369,0.14701991,65959.0,65944.0,0.00015164]
[1721753988568,0.002794,65958.0,65944.0,0.00015164]
[1721753988940,0.758207,65945.0,65944.0,0.00015164]
[1721753989108,1.20850991,65945.0,65944.0,0.00015164]
[1721753989308,1.24965878,65945.0,65944.0,0.00015164]
[1721753989637,1.20850991,65945.0,65944.0,0.00015164]
[1721753990073,0.90522691,65945.0,65944.0,0.00015164]
[1721753990213,1.20850991,65945.0,65944.0,0.00015164]
[1721753990591,1.75279291,65945.0,65944.0,0.00015164]
[1721753990870,1.59329291,65945.0,65944.0,0.00015164]
[1721753991044,1.29000991,65945.0,65944.0,0.00015164]
[1721753991262,1.00072691,65945.0,65944.0,0.00015164]
[1721753991467,0.62994391,65945.0,65944.0,0.00015164]
[1721753991665,0.91922691,65945.0,65944.0,0.00015164]
[1721753992486,0.16101991,65945.0,65944.0,0.00015164]
[1721753992637,0.014,65945.0,65944.0,0.00015164]
[1721753993076,0.91922691,65945.0,65944.0,0.00015164]
[1721753993266,1.22250991,65945.0,65944.0,0.00015164]
[1721753993471,1.23650991,65945.0,65944.0,0.00015164]
[1721753993669,0.93322691,65945.0,65944.0,0.00015164]
[1721753993875,0.94722691,65945.0,65944.0,0.00015164]
[1721753994072,0.028,65945.0,65944.0,0.151643]
[1721753994274,0.028,65945.0,65930.0,0.03578053]
[1721753994550,0.042,65945.0,65935.0,0.303328]
[1721753994751,0.028,65945.0,65944.0,0.45493]
[1721753994958,0.8,66082.0,65939.0,0.303308]
[1721753994959,0.303209,65961.0,65939.0,0.303308]
[1721753995158,0.014,65945.0,65944.0,0.837717]
[1721753995382,0.014,65945.0,65944.0,0.53443]
[1721753995711,0.303239,65955.0,65947.0,0.151636]
[1721753995898,0.14701991,65960.0,65950.0,0.151629]
[1721753996040,0.14701991,65960.0,65935.0,0.0795]
[1721753996041,0.151631,65950.0,65935.0,0.0795]
[1721753996253,0.014,65945.0,65942.0,0.151647]
[1721753996456,0.014,65945.0,65940.0,0.303303]
[1721753996655,0.003,65945.0,65944.0,0.151643]
[1721753996921,0.003,65945.0,65943.0,0.151646]
[1721753997084,0.003,65945.0,65944.0,0.151643]
[1721753997432,0.003,65945.0,65944.0,0.758217]
[1721753997597,0.003,65945.0,65944.0,0.45493]
[1721753998129,0.003,65945.0,65935.0,0.0795]
[1721753998130,0.14701991,65945.0,65935.0,0.0795]
[1721753998333,0.14701991,65944.0,65935.0,0.0795]
[1721753998535,0.002794,65943.0,65936.0,0.303323]
[1721753998748,0.002794,65943.0,65942.0,0.151648]
[1721753998938,0.004,65945.0,65944.0,0.45493]
[1721753999145,0.007,65945.0,65935.0,0.0795]
[1721753999869,0.30329,65944.0,65935.0,0.382824]
[1721754000010,0.001,65943.0,65942.0,0.151648]
[1721754000354,0.001,65943.0,65935.0,0.0795]
[1721754000559,0.001,65943.0,65942.0,0.151648]
[1721754000761,0.303326,65936.0,65927.0,0.917189]
[1721754000982,0.14701991,65936.0,65926.0,0.0783]
[1721754001188,0.303359,65929.0,65924.0,0.064]
[1721754001408,0.303368,65927.0,65917.0,0.064]
[1721754001611,0.151674,65931.0,65917.0,0.064]
[1721754001744,0.002794,65930.0,65929.0,0.151678]
[1721754001944,0.303328,65936.0,65927.0,0.303365]
[1721754002245,0.14701991,65935.0,65920.0,0.00226705]
[1721754002649,0.014,65929.0,65920.0,0.00226705]
[1721754002835,0.014,65929.0,65920.0,0.01754376]
[1721754003035,0.303316,65938.0,65920.0,0.01754376]
[1721754003290,0.30332,65937.0,65920.0,0.01754376]
[1721754003512,0.14701991,65938.0,65920.0,0.01754376]
[1721754003513,0.303298,65942.0,65920.0,0.01754376]
[1721754003718,0.001,65929.0,65928.0,0.15168]
[1721754003919,0.001,65929.0,65920.0,0.00226705]
[1721754004120,0.1367,65939.0,65920.0,0.00226705]
[1721754004121,0.303338,65933.0,65920.0,0.00226705]
[1721754004271,0.16101991,65938.0,65920.0,0.00226705]
[1721754004791,0.002794,65937.0,65924.0,0.303377]
[1721754004991,0.003,65929.0,65920.0,0.00226705]
[1721754005351,0.003,65929.0,65928.0,0.758402]
[1721754005485,0.0767,65947.0,65933.0,0.303335]
[1721754005866,0.002794,65960.0,65939.0,0.303308]
[1721754006036,0.012,65938.0,65935.0,0.063]
[1721754006508,0.012,65938.0,65937.0,0.151659]
[1721754006711,0.002794,65960.0,65941.0,0.15165]
[1721754006924,0.013,65947.0,65927.0,0.0771]
[1721754007109,0.0824,65942.0,65927.0,0.151682]
[1721754007296,0.14701991,65941.0,65930.0,0.151675]
[1721754007496,0.14701991,65941.0,65926.0,0.0612]
[1721754007497,0.003,65929.0,65926.0,0.0612]
[1721754007670,0.003,65929.0,65921.0,0.30339]
[1721754007877,0.303362,65928.0,65923.0,0.151692]
[1721754008083,0.303362,65928.0,65923.0,0.151691]
[1721754008289,0.30333,65935.0,65920.0,0.06486705]
[1721754008500,0.002794,65933.0,65920.0,0.06486705]
[1721754008665,0.005,65938.0,65920.0,0.00226705]
[1721754008866,0.151666,65934.0,65920.0,0.00226705]
[1721754009112,0.002794,65932.0,65920.0,0.00226705]
[1721754009378,0.14701991,65931.0,65923.0,0.001]
[1721754009576,0.14701991,65931.0,65924.0,0.303379]
[1721754009829,0.151681,65928.0,65921.0,0.303389]
[1721754010033,0.303326,65936.0,65920.0,0.00226705]
[1721754010241,0.317334,65934.0,65920.0,0.00226705]
[1721754010391,0.14981391,65933.0,65920.0,0.00226705]
[1721754010599,0.303365,65928.0,65920.0,0.00226705]
[1721754010802,0.014,65934.0,65920.0,0.00226705]
[1721754011000,0.002794,65933.0,65932.0,0.15167]
[1721754011204,0.014,65934.0,65920.0,0.00226705]
[1721754011679,0.014,65933.0,65920.0,0.00226705]
[1721754011878,0.009,65928.0,65920.0,0.00226705]
[1721754012079,0.009,65928.0,65927.0,0.455047]
[1721754012199,0.009,65928.0,65927.0,0.904412]
[1721754012401,0.012,65933.0,65932.0,0.758355]
[1721754012741,0.012,65933.0,65932.0,1.061697]
[1721754012909,0.012,65933.0,65932.0,0.758355]
[1721754013105,0.012,65933.0,65927.0,0.146]
[1721754013344,0.151679,65929.0,65927.0,0.0634]
[1721754013568,0.011,65934.0,65927.0,0.0634]
[1721754013784,0.0607,65947.0,65927.0,0.0634]
[1721754013991,0.012,65934.0,65929.0,0.303356]
[1721754014163,0.14701991,65946.0,65930.0,0.303351]
[1721754014378,0.151662,65936.0,65928.0,0.30336]
[1721754014584,0.007,65929.0,65920.0,0.08546705]
[1721754014767,0.15401991,65929.0,65921.0,0.151695]
[1721754015117,0.14701991,65929.0,65921.0,0.151694]
[1721754015287,0.14701991,65929.0,65920.0,0.00226705]
[1721754015450,0.14701991,65929.0,65922.0,0.151693]
[1721754015663,0.303361,65928.0,65922.0,0.151692]
[1721754015856,0.303366,65927.0,65920.0,0.00226705]
[1721754016142,0.151681,65928.0,65921.0,0.303392]
[1721754016429,0.0772,65931.0,65922.0,0.0305659]
[1721754016625,0.0793,65939.0,65920.0,0.00226705]
[1721754016797,0.14701991,65938.0,65925.0,0.303373]
[1721754017002,0.14701991,65938.0,65920.0,0.00226705]
[1721754017003,0.005,65929.0,65928.0,0.15168]
[1721754017328,0.005,65929.0,65928.0,0.470209]
[1721754017545,0.01,65931.0,65929.0,0.151677]
[1721754017675,0.01,65931.0,65930.0,0.455028]
[1721754017879,0.151655,65939.0,65927.0,0.303364]
[1721754018107,0.008,65929.0,65928.0,0.15168]
[1721754018311,0.008,65929.0,65928.0,0.899502]
[1721754018527,0.002794,65944.0,65943.0,0.151646]
[1721754018736,0.0803,65962.0,65948.0,0.0609]
[1721754018945,0.14701991,65961.0,65948.0,0.0609]
[1721754019217,0.151613,65958.0,65949.0,0.303264]
[1721754019419,0.29862491,65961.0,65954.0,0.303241]
[1721754019635,0.002794,65956.0,65955.0,0.151618]
[1721754019839,0.002794,65960.0,65959.0,0.758045]
[1721754020086,0.227453,65984.0,65963.0,0.594]
[1721754020325,0.002794,65983.0,65963.0,1.2004]
[1721754020498,0.002794,65983.0,65963.0,1.65061991]
[1721754020699,0.0759,65984.0,65963.0,1.67361991]
[1721754020873,0.379004,65984.0,65963.0,1.37041991]
[1721754021089,0.0759,65984.0,65963.0,3.01738256]
[1721754021291,0.002794,65983.0,65963.0,3.01738256]
[1721754021535,0.364474,65991.0,65963.0,3.01738256]
[1721754021536,0.002794,65989.0,65963.0,3.01738256]
[1721754021836,0.151585,65970.0,65963.0,2.094]
[1721754022042,0.00192401,65964.0,65963.0,0.002]
[1721754022258,0.00192401,65964.0,65963.0,0.4568]
[1721754022449,0.00092401,65964.0,65963.0,0.002]
[1721754022652,0.00092401,65964.0,65963.0,0.1536]
[1721754023067,0.00192401,65964.0,65963.0,0.1536]
[1721754023272,0.15352101,65964.0,65963.0,0.002]
[1721754023480,0.45671601,65964.0,65963.0,0.002]
[1721754023688,0.75991101,65964.0,65963.0,0.002]
[1721754023897,0.91203092,65964.0,65963.0,0.002]
[1721754024106,1.21622592,65964.0,65963.0,0.004]
[1721754024311,1.85942092,65964.0,65963.0,0.004]
[1721754024517,1.81069712,65964.0,65963.0,0.004]
[1721754024725,0.44632012,65964.0,65931.0,0.0659]
[1721754024932,0.37077953,65963.0,65932.0,0.14701991]
[1721754025140,0.3506832,65962.0,65932.0,0.14701991]
[1721754025342,0.32330333,65963.0,65950.0,0.151629]
[1721754025343,0.303225,65958.0,65950.0,0.151629]
[1721754025546,0.45024491,65958.0,65951.0,0.151627]
[1721754025756,0.45024491,65958.0,65946.0,0.151638]
[1721754025757,0.303243,65954.0,65946.0,0.151638]
[1721754025960,0.151629,65951.0,65946.0,0.151638]
[1721754026166,0.15082401,65964.0,65932.0,0.13960708]
[1721754026372,0.014,65962.0,65933.0,0.0805]
[1721754026584,0.002794,65961.0,65940.0,0.379]
[1721754026792,0.014,65962.0,65942.0,0.0659]
[1721754026944,0.303212,65961.0,65943.0,0.14701991]
[1721754027148,0.303236,65956.0,65944.0,0.13411469]
[1721754027348,0.151609,65959.0,65944.0,0.13411469]
[1721754027548,0.014,65962.0,65944.0,0.2811346]
[1721754027876,0.014,65961.0,65960.0,0.151607]
[1721754028082,0.00602401,65964.0,65953.0,0.0805]
[1721754028283,0.151605,65961.0,65953.0,0.0805]
[1721754028485,0.151619,65955.0,65941.0,0.0805]
[1721754028716,0.14701991,65960.0,65943.0,0.151644]
[1721754028717,0.151635,65948.0,65943.0,0.151644]
[1721754028918,0.00092401,65951.0,65950.0,0.15163]
[1721754029215,0.00092401,65951.0,65950.0,0.75815]
[1721754029414,0.00092401,65951.0,65950.0,0.15163]
[1721754029592,0.00092401,65951.0,65950.0,0.45489]
[1721754029808,0.00092401,65951.0,65950.0,0.803639]
[1721754030008,0.00092401,65951.0,65943.0,0.303289]
[1721754030211,0.00092401,65951.0,65950.0,0.45489]
[1721754030424,0.014,65961.0,65957.0,0.151611]
[1721754030633,0.014,65961.0,65955.0,0.303232]
[1721754030634,0.014,65961.0,65960.0,0.151607]
[1721754030844,0.382957,65973.0,65962.0,0.151602]
[1721754031039,0.14701991,65971.0,65961.0,0.303207]
[1721754031369,0.0798,65973.0,65946.0,0.303274]
[1721754031718,0.303133,65978.0,65961.0,0.0773]
[1721754031938,0.151603,65962.0,65954.0,0.4765]
[1721754032154,0.303193,65965.0,65958.0,0.15161]
[1721754032413,0.303193,65965.0,65955.0,0.0857045]
[1721754032414,0.151591,65967.0,65961.0,0.151603]
[1721754032629,0.303197,65964.0,65954.0,0.4765]
[1721754032824,0.303197,65964.0,65955.0,0.303236]
[1721754032943,0.14701991,65977.0,65955.0,0.303236]
[1721754032944,0.151603,65962.0,65957.0,0.151613]
[1721754033169,0.014,65973.0,65954.0,0.4765]
[1721754033394,0.151595,65965.0,65956.0,0.303232]
[1721754033595,0.16101991,65972.0,65954.0,0.4765]
[1721754033811,0.151589,65968.0,65954.0,0.551406]
[1721754034015,0.014,65973.0,65955.0,0.14701991]
[1721754034213,0.014,65973.0,65955.0,0.17001991]
[1721754034433,0.151585,65970.0,65965.0,0.151594]
[1721754034611,0.151585,65970.0,65964.0,0.151596]
[1721754034787,0.002794,65975.0,65959.0,0.303216]
[1721754034989,0.005,65964.0,65963.0,0.1516]
[1721754035258,0.005,65964.0,65963.0,0.4548]
[1721754035454,0.005,65964.0,65963.0,0.758]
[1721754035686,0.008,65965.0,65964.0,1.427777]
[1721754035814,0.008,65965.0,65964.0,1.82225956]
[1721754035995,0.008,65965.0,65964.0,1.82325956]
[1721754036417,0.008,65965.0,65964.0,1.82225956]
[1721754036624,0.151547,65986.0,65981.0,0.151558]
[1721754036822,0.0805,65991.0,65968.0,0.303177]
[1721754037045,0.15154,65989.0,65984.0,0.151551]
[1721754037450,0.151538,65990.0,65984.0,0.15155]
[1721754037652,0.151533,65993.0,65977.0,0.151567]
[1721754038000,0.0794,66001.0,65978.0,0.0151567]
[1721754038169,0.303072,65991.0,65981.0,0.303113]
[1721754038512,0.303064,65993.0,65970.0,0.0617]
[1721754038705,0.303083,65989.0,65982.0,0.151555]
[1721754038866,0.30306,65994.0,65980.0,0.30312]
[1721754039072,0.303047,65997.0,65971.0,0.14701991]
[1721754039073,0.303069,65992.0,65977.0,0.303133]
[1721754039277,0.15155,65985.0,65984.0,0.001]